bitfinex/quotes_ETHUSD_20230405
["timestamp","ask_amount","ask_price","bid_price","bid_amount"]
[1680679899238,1.10108754,1909.4,1908.6,0.52487544]
[1680679899540,1.68016629,1909.4,1908.7,16.1736]
[1680679899747,1.68016629,1909.4,1908.9,0.77007]
[1680679899943,0.35095614,1909.3,1908.9,0.77007]
[1680679900959,1.68616629,1909.4,1908.9,0.77007]
[1680679901129,0.16861663,1909.3,1908.9,0.77007]
[1680679902124,0.35033854,1909.2,1908.9,0.77007]
[1680679904061,0.34813318,1909.2,1908.9,0.77007]
[1680679905147,1.52016629,1909.4,1908.9,0.77007]
[1680679906063,0.39567762,1909.3,1908.9,0.77007]
[1680679906357,0.39567762,1909.3,1908.9,0.847077]
[1680679906997,0.94108754,1909.4,1908.9,0.847077]
[1680679908276,0.929,1909.4,1908.9,0.847077]
[1680679908606,0.002,1909.5,1909.3,0.7699]
[1680679908788,5.64710001,1910.1,1909.4,0.40693]
[1680679908988,8.28338256,1910.1,1909.4,0.41700496]
[1680679909360,2.63428255,1910.0,1909.4,11.95611496]
[1680679909590,2.63428255,1910.0,1909.4,11.95811496]
[1680679910501,0.926,1909.9,1909.4,11.95811496]
[1680679910807,3.56028255,1909.9,1909.4,11.95811496]
[1680679911012,3.56028255,1909.9,1909.4,11.96411496]
[1680679911160,3.91711081,1909.9,1909.4,11.96411496]
[1680679912309,2.99111081,1909.9,1909.4,11.96411496]
[1680679912468,0.35682826,1909.9,1909.4,11.96411496]
[1680679912667,1.09908754,1910.0,1909.4,11.95811496]
[1680679912911,1.095,1909.9,1909.4,11.95811496]
[1680679914576,1.095,1909.9,1909.4,11.62817496]
[1680679914738,1.095,1909.9,1909.4,11.95811496]
[1680679914905,1.088,1909.9,1909.4,11.95811496]
[1680679916550,4.71510001,1910.1,1909.4,11.95811496]
[1680679916713,7.34738256,1910.1,1909.4,11.95811496]
[1680679916912,7.34938256,1910.1,1909.4,11.95811496]
[1680679917621,7.34338256,1910.1,1909.4,11.96411496]
[1680679920447,7.3554701,1910.1,1909.4,11.96411496]
[1680679921253,4.72118755,1910.1,1909.4,11.96411496]
[1680679921454,4.71918755,1910.1,1909.4,11.96411496]
[1680679921659,4.71918755,1910.1,1909.4,20.11039751]
[1680679925251,4.71918755,1910.1,1909.4,11.96411496]
[1680679926442,4.60918754,1910.1,1909.4,11.96411496]
[1680679927513,5.0819063,1910.1,1909.4,11.96411496]
[1680679927710,5.0839063,1910.1,1909.4,11.96411496]
[1680679928911,5.08003002,1910.1,1909.4,11.96411496]
[1680679929177,4.60731126,1910.1,1909.4,11.96411496]
[1680679929381,4.60531126,1910.1,1909.4,11.96411496]
[1680679932914,7.23959381,1910.1,1909.4,11.96411496]
[1680679933120,7.24159381,1910.1,1909.4,11.96411496]
[1680679937527,2.63428255,1910.0,1909.4,11.95404]
[1680679937822,3.35844193,1910.0,1909.4,11.95404]
[1680679937977,4.35844193,1910.0,1909.4,11.95404]
[1680679939099,1.0,1909.9,1909.4,11.95404]
[1680679940014,2.095,1909.9,1909.4,11.95404]
[1680679940325,0.2095,1909.8,1909.4,11.95404]
[1680679948834,1.097,1909.7,1909.4,0.33794]
[1680679949039,1.097,1909.7,1909.4,0.32994]
[1680679950307,3.73128255,1909.7,1909.4,0.32994]
[1680679951664,1.0,1909.6,1909.4,0.32994]
[1680679951841,0.1,1909.5,1909.4,0.32994]
[1680679952819,1.097,1909.6,1909.4,0.32994]
[1680679953021,2.63428255,1909.7,1909.4,0.32994]
[1680679954860,1.10108754,1909.8,1909.4,0.32994]
[1680679955071,3.73337009,1909.8,1909.4,0.32994]
[1680679955924,0.01208754,1909.8,1909.4,0.32994]
[1680679961260,0.01208754,1909.8,1909.4,11.39434]
[1680679961461,0.01208754,1909.8,1909.4,11.40234]
[1680679961865,0.01208754,1909.8,1909.4,16.59024]
[1680679962265,0.12199629,1909.8,1909.4,16.59024]
[1680679966147,0.12199629,1909.8,1909.4,5.52584]
[1680679966335,1.095,1909.7,1909.4,0.33794]
[1680679966535,1.095,1909.7,1909.4,0.32994]
[1680679969759,0.38442788,1909.7,1909.4,0.32994]
[1680679972260,3.94571043,1909.7,1909.4,0.32994]
[1680679976107,0.47657749,1909.6,1909.4,0.32994]
[1680679976615,0.47273338,1909.6,1909.4,0.32994]
[1680679977107,3.94571043,1909.7,1909.4,0.32994]
[1680679977279,0.39457104,1909.6,1909.4,0.32994]
[1680679993431,3.56128255,1909.7,1909.4,0.32994]
[1680679993630,0.23,1909.6,1909.4,0.32994]
[1680679998208,0.927,1909.7,1909.4,0.32994]
[1680679998411,0.002,1909.8,1909.4,0.32994]
[1680679998630,0.23,1909.8,1909.4,0.32994]
[1680679998941,0.23,1909.8,1909.4,0.406929]
[1680679999670,0.22782327,1909.8,1909.4,0.406929]
[1680680000033,35.6008,1910.1,1909.4,0.406929]
[1680680000207,2.63428255,1910.0,1909.4,11.520529]
[1680680000405,29.932,1910.1,1909.5,0.928]
[1680680000700,2.63628255,1910.1,1909.6,1.86941]
[1680680000909,2.63428255,1910.1,1909.6,1.86941]
[1680680001325,0.002,1910.2,1909.6,1.86941]
[1680680001527,2.63428255,1910.2,1909.7,11.300541]
[1680680001728,2.63428255,1910.2,1909.8,0.76968]
[1680680001934,0.23,1910.1,1909.8,0.76968]
[1680680003093,1.04000001,1910.3,1909.8,0.76968]
[1680680003298,1.03200001,1910.3,1909.8,0.76968]
[1680680004343,2.63428255,1910.2,1909.8,0.76968]
[1680680004543,3.55728255,1910.2,1909.8,0.76968]
[1680680005317,0.23,1910.1,1909.8,0.76968]
[1680680005699,3.55728255,1910.2,1909.8,0.76968]
[1680680005898,0.58572826,1910.1,1909.8,0.76968]
[1680680016062,0.11800001,1910.3,1909.8,0.76968]
[1680680016264,0.11000001,1910.3,1909.8,0.76968]
[1680680016838,0.11000001,1910.3,1909.8,5.85998]
[1680680017185,0.11000001,1910.3,1909.8,5.86198]
[1680680017837,0.11000001,1910.3,1909.8,4.81198]
[1680680018166,0.11000001,1910.3,1909.8,5.13984]
[1680680018364,0.11000001,1910.3,1909.8,5.58166]
[1680680019475,0.11000001,1910.3,1909.8,5.59173284]
[1680680024543,0.94508754,1910.4,1909.8,5.59173284]
[1680680024786,0.23,1910.3,1909.8,5.59173284]
[1680680025075,0.236,1910.3,1909.8,5.59173284]
[1680680026578,0.61693701,1910.3,1909.8,5.59173284]
[1680680027680,0.923,1909.9,1909.8,0.002]
[1680680027879,0.923,1909.9,1909.7,0.10996]
[1680680027880,3.78728255,1909.9,1909.7,0.10996]
[1680680028047,4.16901081,1909.8,1909.7,0.10996]
[1680680028379,4.16901081,1909.8,1909.7,0.32988]
[1680680028972,1.31072826,1909.8,1909.7,0.32988]
[1680680029277,0.926,1909.8,1909.7,0.32988]
[1680680029881,0.929,1910.0,1909.7,0.32988]
[1680680030206,0.23,1909.9,1909.7,0.32988]
[1680680032071,3.56328255,1910.0,1909.7,0.32988]
[1680680032280,0.35632826,1909.9,1909.7,0.32988]
[1680680033294,0.01808754,1910.1,1909.7,0.32988]
[1680680033594,0.01208754,1910.1,1909.7,0.32988]
[1680680034664,0.24208754,1910.1,1909.7,0.32988]
[1680680037279,2.87637009,1910.1,1909.7,0.10996]
[1680680037485,3.84491956,1910.0,1909.7,0.10996]
[1680680037671,3.85091956,1910.0,1909.7,0.10996]
[1680680039198,3.84184863,1910.0,1909.7,0.10996]
[1680680039385,9.37628255,1909.9,1909.5,0.006]
[1680680039583,0.922,1909.7,1909.4,2.10997]
[1680680039791,2.86428255,1909.6,1909.4,2.11597]
[1680680039970,0.28642826,1909.5,1909.4,2.11597]
[1680680040174,0.51642826,1909.5,1909.4,2.0]
[1680680040692,3.15071081,1909.5,1909.4,2.10998]
[1680680041012,2.86428255,1909.5,1909.4,2.10998]
[1680680041210,0.002,1909.6,1909.4,2.34001496]
[1680680041371,0.28763701,1910.0,1909.4,2.34001496]
[1680680041372,1.20963701,1910.0,1909.4,2.34001496]
[1680680041571,2.75524625,1909.9,1909.4,2.34001496]
[1680680041849,2.75524625,1909.9,1909.4,2.34601496]
[1680680042110,2.75524625,1909.9,1909.4,13.29601496]
[1680680042271,2.75524625,1909.9,1909.4,13.29801496]
[1680680043887,2.75524625,1909.9,1909.4,11.29801496]
[1680680044087,0.27552462,1909.8,1909.4,11.29801496]
[1680680047183,2.63428255,1909.7,1909.4,0.34801496]
[1680680047376,1.33908754,1909.6,1909.3,0.10998]
[1680680047580,0.13390875,1909.5,1909.4,0.32994]
[1680680047793,0.24208754,1909.6,1909.4,0.32994]
[1680680055305,2.87637009,1909.6,1909.4,0.32994]
[1680680060727,2.87637009,1909.6,1909.4,0.10998]
[1680680061524,2.87637009,1909.6,1909.3,0.32995]
[1680680064029,2.63428255,1909.5,1909.3,0.32995]
[1680680064229,0.28763701,1909.5,1909.3,0.33595]
[1680680064478,0.24208754,1909.6,1909.3,0.32995]
[1680680064683,2.64637009,1909.6,1909.3,0.32995]
[1680680064978,0.23,1909.5,1909.3,0.32995]
[1680680068471,2.64637009,1909.6,1909.3,0.32995]
[1680680068628,2.9112071,1909.6,1909.3,0.32995]
[1680680073660,2.86428255,1909.5,1909.3,0.32995]
[1680680073856,2.86428255,1909.5,1909.3,0.33595]
[1680680074952,2.82028255,1909.5,1909.3,0.32995]
[1680680078684,0.008,1909.7,1909.3,0.32995]
[1680680078891,2.63428255,1909.6,1909.3,0.40994]
[1680680081993,0.232,1909.7,1909.3,0.40994]
[1680680081994,0.002,1909.7,1909.3,1.49794]
[1680680082152,4.6757,1909.8,1909.3,1.49794]
[1680680082349,7.30998255,1909.8,1909.3,1.49794]
[1680680082574,4.6777,1909.8,1909.4,0.149794]
[1680680082894,0.008,1909.9,1909.5,0.76982]
[1680680083189,2.63428255,1909.9,1909.5,0.76982]
[1680680083406,2.64028255,1909.9,1909.5,0.76982]
[1680680083885,0.23,1909.8,1909.5,0.76982]
[1680680084263,2.64028255,1909.9,1909.5,0.76982]
[1680680084476,2.63428255,1909.9,1909.5,0.76982]
[1680680086272,4.8368,1910.0,1909.5,0.76982]
[1680680086587,0.23,1909.9,1909.5,0.76982]
[1680680087994,7.47108255,1910.0,1909.5,0.76982]
[1680680090086,4.8368,1910.0,1909.5,0.76982]
[1680680090429,4.8348,1910.0,1909.5,0.76982]
[1680680091628,7.46908255,1910.0,1909.5,0.76982]
[1680680091785,7.47108255,1910.0,1909.5,0.76982]
[1680680091980,2.63428255,1909.9,1909.5,0.32992]
[1680680092192,3.38139081,1909.9,1909.5,0.32992]
[1680680094119,0.74710826,1909.9,1909.5,0.32992]
[1680680096681,0.74439212,1909.9,1909.5,0.33192]
[1680680097031,4.8308,1910.0,1909.5,0.33592]
[1680680097229,7.46308255,1910.0,1909.5,0.33592]
[1680680097427,7.46508255,1910.0,1909.5,0.33592]
[1680680097598,8.21339956,1910.0,1909.5,0.33592]
[1680680107706,2.63428255,1909.9,1909.5,0.33592]
[1680680108420,1.0,1909.8,1909.5,0.11597]
[1680680108712,1.0,1909.8,1909.4,0.10997]
[1680680108713,3.78428255,1909.7,1909.4,0.10997]
[1680680108943,3.88428255,1909.7,1909.4,0.10997]
[1680680112051,2.96428255,1909.7,1909.4,0.10997]
[1680680117942,2.96428255,1909.7,1909.4,0.32993]
[1680680118519,2.96428255,1909.7,1909.4,0.76985]
[1680680118720,2.86428255,1909.7,1909.4,0.76985]
[1680680120056,0.93,1909.8,1909.4,0.76985]
[1680680120246,6.12725857,1910.0,1909.4,0.76985]
[1680680120428,2.86428255,1909.9,1909.4,0.76985]
[1680680120632,3.76343666,1909.9,1909.4,0.76985]
[1680680127969,2.86428255,1909.9,1909.4,0.76985]
[1680680128138,5.59120455,1910.0,1909.4,0.76985]
[1680680128139,0.32116574,1909.5,1909.4,1.69285]
[1680680128342,0.32116574,1909.5,1909.4,17.63195]
[1680680128544,0.32116574,1909.5,1909.4,17.63395]
[1680680135551,0.32116574,1909.5,1909.4,20.26823255]
[1680680141316,0.32116574,1909.5,1909.4,26.70523255]
[1680680141451,0.32116574,1909.5,1909.4,31.23700809]
[1680680144518,0.32116574,1909.5,1909.4,33.93700809]
[1680680146420,0.19136661,1909.5,1909.4,33.93100809]
[1680680146618,0.19136661,1909.5,1909.4,33.00600809]
[1680680167804,0.18814369,1909.5,1909.4,33.23600809]
[1680680168007,0.18814369,1909.5,1909.4,33.00600809]
[1680680174770,0.18814369,1909.5,1909.4,33.93100809]
[1680680179073,0.18814369,1909.5,1909.4,34.16100809]
[1680680179235,0.18814369,1909.5,1909.4,33.93100809]
[1680680180274,0.18814369,1909.5,1909.4,34.16100809]
[1680680180572,0.006,1910.2,1909.7,7.38132]
[1680680180770,0.006,1910.2,1909.8,14.34178255]
[1680680180929,0.006,1910.2,1909.9,0.76965]
[1680680183385,0.928,1910.2,1909.9,0.76965]
[1680680184484,0.928,1910.2,1909.9,1.26965]
[1680680185291,1.0208,1910.2,1909.9,1.26965]
[1680680190750,0.92,1910.0,1909.9,1.26965]
[1680680192261,0.006,1910.0,1909.9,1.26965]
[1680680192472,0.934,1910.1,1909.9,1.26965]
[1680680192784,0.0934,1910.0,1909.9,1.26965]
[1680680195185,0.0934,1910.0,1909.9,0.82985]
[1680680197577,0.0934,1910.0,1909.9,0.60995]
[1680680198403,0.0934,1910.0,1909.9,0.82985]
[1680680198899,0.0994,1910.0,1909.9,0.82985]
[1680680202587,0.0994,1910.0,1909.9,0.5]
[1680680204424,1.3294,1910.0,1909.9,0.5]
[1680680205315,1.32064912,1910.0,1909.9,0.5]
[1680680206226,1.33273666,1910.0,1909.9,0.5]
[1680680206735,3.96701921,1910.0,1909.9,0.5]
[1680680210150,0.09064912,1910.0,1909.9,0.5]
[1680680210349,1.858,1910.1,1909.9,0.60995]
[1680680210535,4.49228255,1910.1,1909.9,0.60995]
[1680680212761,0.928,1910.1,1909.9,0.60995]
[1680680213326,0.928,1910.1,1909.9,0.82985]
[1680680214136,1.03008,1910.1,1909.9,0.82985]
[1680680214770,0.928,1910.1,1909.9,0.60995]
[1680680217193,0.928,1910.1,1909.9,0.5]
[1680680221420,0.23,1910.0,1909.9,0.5]
[1680680221615,1.23,1910.0,1909.9,0.5]
[1680680222639,3.86428255,1910.0,1909.9,0.5]
[1680680222797,4.43721081,1910.0,1909.9,0.5]
[1680680223897,4.62045081,1910.0,1909.9,0.5]
[1680680224233,4.43721081,1910.0,1909.9,0.5]
[1680680224796,3.44929835,1910.0,1909.9,0.45]
[1680680226424,3.63253835,1910.0,1909.9,0.45]
[1680680226604,3.44929835,1910.0,1909.9,0.45]
[1680680227004,3.63253835,1910.0,1909.9,0.45]
[1680680227200,3.44929835,1910.0,1909.9,0.45]
[1680680232436,3.63253835,1910.0,1909.9,0.45]
[1680680232637,9.51102835,1910.0,1909.9,0.45]
[1680680232926,9.51302835,1910.0,1909.9,0.45]
[1680680234133,9.14653835,1910.0,1909.9,0.45]
[1680680239651,12.89234954,1910.0,1909.9,0.45]
[1680680242405,9.14653835,1910.0,1909.9,0.45]
[1680680245401,10.05541796,1910.0,1909.9,0.45]
[1680680245606,10.60355952,1910.0,1909.9,0.45]
[1680680249416,4.36017796,1910.0,1909.9,0.45]
[1680680249602,4.54141796,1910.0,1909.9,0.45]
[1680680252983,5.08955952,1910.0,1909.9,0.45]
[1680680253321,3.63453835,1910.0,1909.9,0.45]
[1680680253523,3.63253835,1910.0,1909.9,0.45]
[1680680253992,3.44929835,1910.0,1909.9,0.45]
[1680680254196,3.63253835,1910.0,1909.9,0.45]
[1680680255127,3.63253835,1910.0,1909.9,0.445]
[1680680259036,4.54142665,1910.0,1909.9,0.445]
[1680680259205,3.78628255,1910.0,1909.9,0.445]
[1680680259404,0.922,1910.0,1909.9,0.445]
[1680680262109,0.928,1910.1,1909.9,0.445]
[1680680266531,0.54814156,1910.2,1909.9,0.445]
[1680680266733,0.23,1910.1,1909.9,0.445]
[1680680267218,1.158,1910.1,1909.9,0.445]
[1680680267616,0.23,1910.1,1909.9,0.445]
[1680680269958,3.31624696,1910.1,1909.9,0.445]
[1680680270164,3.56228255,1910.0,1909.9,0.445]
[1680680270454,3.79228255,1910.0,1909.9,0.445]
[1680680275492,0.928,1910.0,1909.9,0.445]
[1680680276462,0.927,1910.1,1909.9,0.445]
[1680680276882,0.92328454,1910.1,1909.9,0.445]
[1680680288606,0.924,1910.0,1909.9,0.445]
[1680680288805,1.33724,1910.0,1909.9,0.445]
[1680680289018,2.33724,1910.0,1909.9,0.445]
[1680680289567,3.7942629,1910.0,1909.9,0.445]
[1680680290811,2.24612134,1910.0,1909.9,0.445]
[1680680290986,3.01708294,1910.0,1909.9,0.445]
[1680680291169,3.5652245,1910.0,1909.9,0.445]
[1680680292271,3.01708294,1910.0,1909.9,0.445]
[1680680292786,3.5652245,1910.0,1909.9,0.445]
[1680680293105,3.01708294,1910.0,1909.9,0.445]
[1680680293524,3.5652245,1910.0,1909.9,0.445]
[1680680294109,3.01708294,1910.0,1909.9,0.445]
[1680680294303,3.5652245,1910.0,1909.9,0.445]
[1680680296075,2.83384294,1910.0,1909.9,0.445]
[1680680296424,1.154,1910.0,1909.9,0.445]
[1680680296829,0.924,1910.0,1909.9,0.445]
[1680680297028,0.002,1910.1,1909.9,0.45507232]
[1680680297326,0.23,1910.1,1909.9,0.45507232]
[1680680302484,1.47614156,1910.2,1909.9,0.84142455]
[1680680302786,0.928,1910.2,1909.9,0.84142455]
[1680680302990,0.92539399,1910.2,1909.9,0.62152455]
[1680680303536,0.54814156,1910.3,1909.9,0.62152455]
[1680680303693,0.54814156,1910.3,1910.0,0.06215245]
[1680680303894,0.54814156,1910.3,1910.0,0.17209245]
[1680680305586,0.54814156,1910.3,1910.0,0.06215245]
[1680680307696,0.54814156,1910.4,1910.0,0.06215245]
[1680680307898,2.27948835,1910.4,1910.0,0.06215245]
[1680680308404,0.54814156,1910.3,1910.0,0.06215245]
[1680680308567,1.37078418,1910.4,1910.0,0.06215245]
[1680680308772,1.45683784,1910.4,1910.0,0.06215245]
[1680680310422,1.45683784,1910.4,1910.0,0.17209245]
[1680680312488,0.54814156,1910.4,1910.0,0.17209245]
[1680680312688,6.60948616,1910.5,1910.0,0.17209245]
[1680680312907,0.23,1910.4,1910.0,0.17209245]
[1680680313590,0.77814156,1910.4,1910.0,0.17209245]
[1680680313789,1.68683225,1910.4,1910.0,0.17209245]
[1680680313984,0.77814156,1910.4,1910.0,0.17209245]
[1680680314586,0.54814156,1910.4,1910.0,0.39198245]
[1680680314789,1.92348616,1910.5,1910.0,0.17209245]
[1680680315125,4.83800887,1910.5,1910.0,0.06215245]
[1680680315423,1.39249098,1910.4,1909.9,0.56501232]
[1680680315624,0.73134156,1910.4,1909.9,0.45507232]
[1680680316473,0.1832,1910.4,1909.9,0.45507232]
[1680680316710,3.10668616,1910.5,1909.9,0.56502232]
[1680680316913,0.90869284,1910.4,1909.9,0.56502232]
[1680680317718,1.4568344,1910.4,1909.9,0.56502232]
[1680680331842,1.4568344,1910.4,1909.9,1.49302232]
[1680680332141,0.002,1910.5,1910.0,0.928]
[1680680332321,30.48014156,1910.6,1910.1,0.32981]
[1680680332657,0.55014156,1910.6,1910.1,0.32981]
[1680680332950,0.54814156,1910.6,1910.1,0.32981]
[1680680335043,0.54814156,1910.6,1910.1,0.10993]
[1680680336234,1.37078418,1910.6,1910.1,0.10993]
[1680680337732,0.54814156,1910.6,1910.1,0.10993]
[1680680338112,0.54814156,1910.5,1910.1,0.10993]
[1680680344705,0.54814156,1910.5,1910.1,0.32981]
[1680680347837,1.54814156,1910.5,1910.1,0.10993]
[1680680348414,0.54814156,1910.5,1910.1,0.10993]
[1680680350048,0.54814156,1910.5,1910.0,16.3449118]
[1680680350387,1.37078418,1910.5,1910.0,16.3449118]
[1680680351957,2.46262876,1910.5,1910.0,16.3449118]
[1680680352170,0.90865458,1910.4,1910.0,16.3449118]
[1680680352348,1.55398418,1910.5,1910.0,16.2349718]
[1680680352549,0.90865512,1910.4,1910.0,16.2349718]
[1680680352854,1.45679668,1910.4,1910.0,16.2349718]
[1680680354771,1.45679668,1910.4,1910.0,16.3449118]
[1680680354942,0.54814156,1910.4,1910.0,16.3449118]
[1680680356369,1.37078418,1910.5,1910.0,16.3449118]
[1680680356573,2.27943808,1910.5,1910.0,16.3449118]
[1680680356867,1.45679546,1910.4,1910.0,16.3449118]
[1680680357074,0.54814156,1910.4,1910.0,16.3449118]
[1680680357568,2.27943886,1910.5,1910.0,16.3449118]
[1680680357770,0.9086524,1910.4,1910.0,16.3449118]
[1680680357933,1.37078418,1910.5,1910.0,16.3449118]
[1680680358133,2.63872857,1910.5,1910.0,16.3449118]
[1680680358336,0.90865253,1910.4,1910.0,16.3449118]
[1680680358642,1.37078418,1910.5,1910.0,16.3449118]
[1680680358870,0.54814156,1910.4,1910.0,16.3449118]
[1680680360470,0.54814156,1910.5,1910.0,16.3449118]
[1680680360670,1.45677335,1910.5,1910.0,16.3449118]
[1680680364843,0.54814156,1910.4,1910.0,16.2249]
[1680680365156,1.45677335,1910.4,1910.0,16.2249]
[1680680365769,1.63997335,1910.4,1910.0,16.2249]
[1680680365952,1.13870435,1910.3,1910.0,0.008]
[1680680366153,1.12535889,1910.3,1909.9,0.451]
[1680680369064,0.94213889,1910.3,1909.9,0.451]
[1680680369664,1.12535889,1910.3,1909.9,0.451]
[1680680369999,0.93608754,1910.2,1909.9,0.451]
[1680680370307,0.09360875,1910.1,1909.9,0.445]
[1680680371876,0.09360875,1910.1,1909.9,0.44229675]
[1680680382276,0.19530754,1910.2,1909.9,0.44229675]
[1680680382504,0.01208754,1910.2,1909.9,0.44229675]
[1680680392329,0.00850941,1910.2,1909.9,0.44229675]
[1680680394293,4.28294804,1910.2,1909.9,0.44229675]
[1680680394500,0.6582948,1910.1,1909.9,0.44229675]
[1680680396395,0.6582948,1910.1,1909.9,0.43847663]
[1680680396795,3.84227735,1910.1,1909.9,0.43847663]
[1680680396987,5.31841891,1910.1,1909.9,0.43847663]
[1680680397206,5.32641891,1910.1,1909.9,0.43847663]
[1680680397391,0.53264189,1910.0,1909.9,0.43847663]
[1680680397601,0.94588189,1910.0,1909.9,0.43847663]
[1680680398849,5.78354701,1910.0,1909.9,0.43847663]
[1680680398991,7.53418963,1910.0,1909.9,0.43847663]
[1680680399220,8.53418963,1910.0,1909.9,0.43847663]
[1680680399639,11.53418963,1910.0,1909.9,0.43847663]
[1680680399938,12.89711985,1910.0,1909.9,0.43847663]
[1680680400139,11.89711985,1910.0,1909.9,0.43847663]
[1680680400473,17.69184347,1910.0,1909.9,0.43847663]
[1680680400636,17.68584347,1910.0,1909.9,0.43847663]
[1680680400837,17.69184347,1910.0,1909.9,0.43847663]
[1680680401361,5.512,1909.7,1909.2,0.006]
[1680680401565,0.18329,1909.5,1909.2,0.006]
[1680680401719,2.81758255,1909.4,1909.2,0.006]
[1680680401919,0.23,1909.3,1909.2,0.006]
[1680680402123,1.64606825,1909.3,1909.2,0.006]
[1680680402376,1.65457766,1909.3,1909.1,0.006]
[1680680402521,1.65457766,1909.3,1909.0,0.006]
[1680680402871,1.47126766,1909.3,1909.0,0.006]
[1680680403371,4.10555021,1909.3,1909.0,0.006]
[1680680404041,4.28886021,1909.3,1909.0,0.006]
[1680680404364,1.11133,1909.1,1909.0,0.006]
[1680680404563,1.11133,1909.1,1908.9,0.03]
[1680680404564,4.34227255,1909.1,1908.9,0.03]
[1680680404768,2.81762255,1909.0,1908.9,0.03]
[1680680404922,3.04762255,1909.0,1908.9,0.03]
[1680680405124,3.48205081,1909.0,1908.9,0.03]
[1680680405669,8.44965081,1909.0,1908.9,0.03]
[1680680405839,0.43642826,1909.0,1908.9,0.03]
[1680680406026,0.928,1909.1,1908.9,0.03]
[1680680406220,3.56228255,1909.1,1908.9,0.03]
[1680680408651,0.002,1909.2,1908.9,0.25002]
[1680680408852,0.93650941,1909.3,1908.9,0.14]
[1680680409106,0.93650941,1909.3,1908.9,0.03]
[1680680409247,0.93650941,1909.3,1908.9,0.14001]
[1680680409738,0.93650941,1909.3,1908.9,0.14601]
[1680680412090,0.00850941,1909.3,1908.9,0.14601]
[1680680412290,0.23850941,1909.3,1908.9,0.14601]
[1680680413682,0.23,1909.3,1909.1,0.10999]
[1680680413886,0.23,1909.3,1909.1,0.11599]
[1680680414088,0.23,1909.3,1909.1,0.10999]
[1680680414290,0.23,1909.3,1909.1,0.32998]
[1680680415498,0.23,1909.3,1909.1,0.33598]
[1680680416387,0.928,1909.6,1909.1,0.33598]
[1680680416696,0.23,1909.5,1909.1,0.33598]
[1680680417701,3.56228255,1909.6,1909.1,0.33598]
[1680680417899,0.23,1909.5,1909.1,0.33598]
[1680680418400,0.01050941,1909.7,1909.1,0.33598]
[1680680418696,0.00850941,1909.7,1909.1,16.518478]
[1680680418882,0.00850941,1909.7,1909.1,16.520478]
[1680680419893,0.00850941,1909.7,1909.2,0.928]
[1680680420096,0.00850941,1909.7,1909.3,0.32995]
[1680680420414,0.54494502,1909.8,1909.3,0.32995]
[1680680420415,0.54494502,1909.8,1909.4,0.922]
[1680680420592,0.54494502,1909.8,1909.5,0.76982]
[1680680420793,0.54494502,1909.8,1909.5,0.77582]
[1680680421298,0.54494502,1909.8,1909.5,11.60712]
[1680680421502,0.54494502,1909.8,1909.5,12.53612]
[1680680421796,0.54494502,1909.8,1909.7,1.69073]
[1680680421976,0.54494502,1909.8,1909.7,1.71020349]
[1680680422175,0.54494502,1909.8,1909.7,1.87520349]
[1680680426297,0.54165569,1909.8,1909.7,1.86920349]
[1680680431622,0.54165569,1909.8,1909.7,0.34335349]
[1680680438018,0.54165569,1909.8,1909.7,0.78320349]
[1680680438267,0.54165569,1909.8,1909.7,0.86152384]
[1680680440924,0.54165569,1909.8,1909.7,1.95752384]
[1680680443424,0.54165569,1909.8,1909.7,7.46952384]
[1680680443663,0.54165569,1909.8,1909.7,7.47152384]
[1680680450265,0.53872982,1909.8,1909.7,7.47152384]
[1680680453331,0.53872982,1909.8,1909.7,7.46815406]
[1680680453929,0.53872982,1909.8,1909.7,6.37215406]
[1680680454128,0.53872982,1909.8,1909.7,0.18691057]
[1680680454322,0.53872982,1909.8,1909.7,0.32651022]
[1680680454752,0.53872982,1909.8,1909.7,0.10659022]
[1680680454940,0.53872982,1909.8,1909.7,0.10996]
[1680680456332,0.53872982,1909.8,1909.7,0.10996]
[1680680456835,0.54723923,1909.8,1909.5,1.55594692]
[1680680457036,0.05472392,1909.7,1909.5,1.66391692]
[1680680457289,0.54723923,1909.8,1909.5,1.66391692]
[1680680458084,0.54723923,1909.8,1909.5,1.55394692]
[1680680458594,0.54723923,1909.8,1909.4,11.89937]
[1680680462470,0.54723923,1909.8,1909.4,14.49937]
[1680680466742,0.60256315,1909.8,1909.4,14.49937]
[1680680468800,0.60256315,1909.8,1909.4,14.71933]
[1680680469996,0.60256315,1909.8,1909.4,14.49937]
[1680680472185,0.60256315,1909.8,1909.4,2.71197]
[1680680472479,0.60256315,1909.8,1909.4,2.92993]
[1680680473383,0.54493203,1909.8,1909.4,2.93593]
[1680680475501,0.54493203,1909.8,1909.4,14.30463]
[1680680475710,0.54493203,1909.8,1909.4,14.30663]
[1680680477411,0.53642262,1909.8,1909.4,14.30663]
[1680680477710,0.53642262,1909.8,1909.5,3.73028255]
[1680680477913,0.53642262,1909.8,1909.6,1.14281826]
[1680680478910,0.53642262,1909.8,1909.6,1.14881826]
[1680680480513,0.53642262,1909.8,1909.7,1.096]
[1680680480671,0.53642262,1909.8,1909.7,1.43188]
[1680680481113,0.53642262,1909.8,1909.7,1.44535349]
[1680680481412,0.53642262,1909.8,1909.7,1.93480792]
[1680680481600,0.53642262,1909.8,1909.7,4.56909047]
[1680680487213,0.53642262,1909.8,1909.7,4.40009047]
[1680680494339,0.53642262,1909.8,1909.7,9.91209047]
[1680680494632,0.53642262,1909.8,1909.7,9.91409047]
[1680680497142,0.53252541,1909.8,1909.7,9.90809047]
[1680680498340,0.53252541,1909.8,1909.7,9.90501258]
[1680680501551,5.008,1910.0,1909.7,9.90501258]
[1680680501851,5.008,1910.0,1909.8,8.14628255]
[1680680502143,5.008,1910.0,1909.9,0.32985]
[1680680508349,5.008,1910.0,1909.9,2.92985]
[1680680508757,5.008,1910.0,1909.9,3.4469486]
[1680680511162,5.008,1910.0,1909.9,2.70995]
[1680680511329,5.5088,1910.0,1909.9,2.70995]
[1680680511531,5.008,1910.0,1909.9,2.92985]
[1680680519245,5.008,1910.0,1909.9,2.6]
[1680680519558,5.008,1910.0,1909.9,2.92985]